bitfinex-derivatives/quotes_BNBF0:USTF0_20230831
["timestamp","ask_amount","ask_price","bid_price","bid_amount"]
[1693481122925,0.07144666,224.68,224.26,0.19120778]
[1693481123124,0.07144666,224.68,224.27,0.19120778]
[1693481123318,0.07144666,224.68,224.26,0.19120778]
[1693481123521,0.07144666,224.69,224.27,0.19120778]
[1693481123723,0.07144666,224.69,224.25,0.07063084]
[1693481123724,0.07144666,224.69,224.26,0.19120778]
[1693481123926,0.07144666,224.7,224.27,0.19120778]
[1693481124424,0.07144666,224.71,224.27,0.26183862]
[1693481124627,0.07144666,224.71,224.28,0.19120778]
[1693481126922,0.07144666,224.7,224.28,0.19120778]
[1693481127121,0.07144666,224.7,224.29,0.19120778]
[1693481127327,0.07144666,224.7,224.27,0.19120778]
[1693481128726,0.07144666,224.7,224.27,0.26183862]
[1693481128928,0.07144666,224.7,224.28,0.19120778]
[1693481129328,0.07144666,224.7,224.27,0.19120778]
[1693481129529,0.07144666,224.7,224.28,0.19120778]
[1693481129723,0.07144666,224.69,224.28,0.19120778]
[1693481129931,0.07144666,224.7,224.28,0.19120778]
[1693481130326,0.07144666,224.69,224.28,0.19120778]
[1693481131830,0.07144666,224.69,224.28,0.26183862]
[1693481132029,0.07144666,224.69,224.29,0.19120778]
[1693481132330,0.07144666,224.69,224.3,0.19120778]
[1693481132530,0.07144666,224.69,224.31,0.19120778]
[1693481132733,0.07144666,224.69,224.32,0.19120778]
[1693481133031,0.07144666,224.69,224.33,0.19120778]
[1693481133232,0.07144666,224.69,224.34,0.19120778]
[1693481133431,0.07144666,224.69,224.35,0.19120778]
[1693481133632,0.07144666,224.69,224.29,0.19120778]
[1693481133826,0.07144666,224.68,224.29,0.19120778]
[1693481134632,0.07144666,224.68,224.29,0.26183862]
[1693481134932,0.07144666,224.68,224.3,0.19120778]
[1693481136628,0.95262226,224.76,224.3,0.19120778]
[1693481136629,0.07144666,224.67,224.3,0.19120778]
[1693481136832,0.07144666,224.67,224.29,0.19120778]
[1693481137032,0.07144666,224.67,224.3,0.19120778]
[1693481137234,0.07144666,224.67,224.31,0.19120778]
[1693481137435,0.07144666,224.67,224.32,0.19120778]
[1693481137738,0.07144666,224.67,224.33,0.19120778]
[1693481138035,0.07144666,224.67,224.34,0.19120778]
[1693481138237,0.07144666,224.67,224.3,0.19120778]
[1693481138438,0.07144666,224.67,224.31,0.19120778]
[1693481138730,0.07144666,224.66,224.32,0.19120778]
[1693481138938,0.07144666,224.66,224.31,0.19120778]
[1693481139130,0.07144666,224.66,224.32,0.19120778]
[1693481139330,0.07144666,224.66,224.33,0.19120778]
[1693481139531,0.07144666,224.66,224.34,0.19120778]
[1693481139729,0.07144666,224.66,224.35,0.19120778]
[1693481139936,0.07144666,224.66,224.36,0.19120778]
[1693481140134,0.07144666,224.66,224.32,0.19120778]
[1693481140334,0.07144666,224.66,224.33,0.19120778]
[1693481140532,0.07144666,224.66,224.31,0.19120778]
[1693481140735,0.07144666,224.65,224.32,0.19120778]
[1693481141634,0.07144666,224.65,224.32,0.26183862]
[1693481141835,0.07144666,224.65,224.33,0.19120778]
[1693481142738,0.07144666,224.64,224.33,0.19120778]
[1693481142940,0.07144666,224.64,224.33,0.26183862]
[1693481143138,0.07144666,224.64,224.34,0.19120778]
[1693481144737,0.07144666,224.63,224.34,0.26183862]
[1693481144942,0.07144666,224.63,224.35,0.19120778]
[1693481145739,0.07144666,224.62,224.35,0.26183862]
[1693481145940,0.07144666,224.62,224.36,0.19120778]
[1693481146740,0.07144666,224.6,224.37,0.07063084]
[1693481146940,0.07144666,224.6,224.38,0.19120778]
[1693481147339,0.07144666,224.6,224.39,0.19120778]
[1693481147540,0.07144666,224.6,224.37,0.07063084]
[1693481147742,0.07144666,224.6,224.38,0.19168352]
[1693481149340,0.07144666,224.6,224.36,0.07063084]
[1693481149639,0.07144666,224.6,224.37,0.26233625]
[1693481149831,0.07144666,224.6,224.38,0.19170541]
[1693481155742,0.07144666,224.6,224.38,0.26233625]
[1693481155943,0.07144666,224.6,224.39,0.19170541]
[1693481156938,0.07144666,224.6,224.38,0.19170541]
[1693481157143,0.07144666,224.6,224.37,0.07063084]
[1693481157144,0.07144666,224.6,224.39,0.19170202]
[1693481157344,0.07144666,224.6,224.38,0.07063084]
[1693481157546,0.07144666,224.61,224.39,0.26227077]
[1693481157747,0.07144666,224.61,224.4,0.19163993]
[1693481159547,0.07144666,224.62,224.4,0.19163993]
[1693481159747,0.07144666,224.65,224.43,0.07063084]
[1693481159948,0.07144666,224.67,224.44,0.26227077]
[1693481160149,0.07144666,224.67,224.45,0.19163993]
[1693481161744,0.07144666,224.66,224.45,0.19163993]
[1693481162550,0.07144666,224.68,224.45,0.19163993]
[1693481162747,0.07144666,224.68,224.43,0.19163993]
[1693481163046,0.07144666,224.68,224.44,0.19138091]
[1693481163245,0.07144666,224.68,224.43,0.19138091]
[1693481163444,0.07144666,224.68,224.44,0.19138091]
[1693481163645,0.07144666,224.68,224.45,0.19138091]
[1693481163844,0.07144666,224.68,224.42,0.07063084]
[1693481164044,0.07144666,224.68,219.88,0.95217444]
[1693481164045,0.07144666,224.69,224.43,0.19139242]
[1693481164351,0.07144666,224.69,224.44,0.19139242]
[1693481164553,0.07144666,224.69,224.42,0.19139242]
[1693481164750,0.07144666,224.69,224.43,0.19139242]
[1693481164945,0.07144666,224.7,224.44,0.19139242]
[1693481165250,0.07144666,224.7,224.45,0.19139242]
[1693481165445,0.07144666,224.7,224.34,0.14126169]
[1693481165446,0.07144666,224.7,224.4,0.07063084]
[1693481165651,0.07144666,224.7,224.41,0.1914006]
[1693481166345,0.14289333,224.72,224.4,0.1914006]
[1693481166346,0.07144666,224.69,224.4,0.1914006]
[1693481166547,0.07144666,224.69,224.41,0.1914006]
[1693481166849,0.07144666,224.69,224.42,0.1914006]
[1693481167053,0.07144666,224.7,224.43,0.1914006]
[1693481167252,0.07144666,224.7,224.4,0.1914006]
[1693481167453,0.07144666,224.7,224.41,0.1914006]
[1693481167650,0.07144666,224.7,224.4,0.1914006]
[1693481167952,0.07144666,224.7,224.41,0.1914006]
[1693481168152,0.07144666,224.7,224.42,0.1914006]
[1693481168452,0.07144666,224.7,224.43,0.1914006]
[1693481168647,0.07144666,224.71,224.4,0.1914006]
[1693481168846,0.07144666,224.71,224.41,0.1914006]
[1693481169045,0.07144666,224.71,224.4,0.1914006]
[1693481169246,0.07144666,224.71,224.41,0.1914006]
[1693481169451,0.07144666,224.71,224.42,0.1914006]
[1693481169751,0.07144666,224.71,224.43,0.1914006]
[1693481169953,0.07144666,224.72,224.4,0.1914006]
[1693481170255,0.07144666,224.72,224.41,0.1914006]
[1693481170445,0.07144666,224.72,224.42,0.1914006]
[1693481170753,2.38155566,224.86,224.4,0.07063084]
[1693481170754,0.07144666,224.73,224.43,0.1914006]
[1693481170947,0.07144666,224.74,224.41,0.1914006]
[1693481171151,0.07144666,224.74,224.42,0.1914006]
[1693481171446,0.07144666,224.74,224.43,0.1914006]
[1693481171652,0.07144666,224.74,224.44,0.1914006]
[1693481171851,0.07144666,224.74,224.4,0.07063084]
[1693481171852,0.07144666,224.74,224.41,0.1914006]
[1693481172053,0.07144666,224.74,224.42,0.1914006]
[1693481172352,0.07144666,224.74,224.43,0.1914006]
[1693481172553,0.07144666,224.74,224.4,0.1914006]
[1693481172753,0.07144666,224.74,224.41,0.1914006]
[1693481172952,0.07144666,224.74,224.42,0.1914006]
[1693481173154,0.07144666,224.75,224.4,0.1914006]
[1693481173354,0.07144666,224.75,224.41,0.1914006]
[1693481173652,0.07144666,224.75,224.42,0.1914006]
[1693481173855,0.07144666,224.74,224.4,0.1914006]
[1693481174052,0.07144666,224.74,224.41,0.1914006]
[1693481174248,0.07144666,224.74,224.42,0.1914006]
[1693481174446,0.07144666,224.74,224.43,0.1914006]
[1693481174647,0.07144666,224.74,224.44,0.1914006]
[1693481174851,0.07144666,224.75,224.45,0.1914006]
[1693481175053,0.07144666,224.75,224.39,0.1914006]
[1693481175254,0.07144666,224.74,224.4,0.1914006]
[1693481175452,0.07144666,224.73,224.41,0.1914006]
[1693481175753,0.07144666,224.73,224.42,0.1914006]
[1693481175953,0.07144666,224.73,224.37,0.26203144]
[1693481176154,0.07144666,224.73,224.38,0.1914006]
[1693481176553,0.07144666,224.73,224.37,0.1914006]
[1693481176748,0.07144666,224.73,224.38,0.1914006]
[1693481176952,0.07144666,224.73,224.39,0.1914006]
[1693481177149,0.07144666,224.73,224.4,0.1914006]
[1693481177352,0.07144666,224.73,224.37,0.1914006]
[1693481177556,0.07144666,224.73,224.38,0.1914006]
[1693481177754,0.07144666,224.73,224.39,0.1914006]
[1693481178055,0.07144666,224.73,224.4,0.1914006]
[1693481178256,0.07144666,224.73,224.37,0.1914006]
[1693481178457,0.07144666,224.73,224.38,0.1914006]
[1693481178656,0.07144666,224.73,224.39,0.1914006]
[1693481178955,0.07144666,224.73,224.4,0.1914006]
[1693481179156,0.07144666,224.73,224.37,0.1914006]
[1693481180551,0.14289333,224.75,224.37,0.1914006]
[1693481180552,0.07144666,224.72,224.37,0.1914006]
[1693481182757,0.07144666,224.73,224.37,0.26203144]
[1693481182960,0.07144666,224.73,224.38,0.26203144]
[1693481183161,0.07144666,224.74,224.39,0.1914006]
[1693481183959,0.07144666,224.74,224.39,0.26203144]
[1693481184159,0.07144666,224.74,224.4,0.1914006]
[1693481184859,0.07144666,224.74,224.41,0.1914006]
[1693481185056,0.07144666,224.74,224.42,0.1914006]
[1693481185254,0.07144666,224.74,224.43,0.1914006]
[1693481185458,0.07144666,224.74,224.4,0.1914006]
[1693481185761,0.07144666,224.74,224.41,0.1914006]
[1693481185961,0.07144666,224.74,224.42,0.1914006]
[1693481186161,0.07144666,224.74,224.4,0.1914006]
[1693481186358,0.07144666,224.74,224.41,0.1914006]
[1693481186553,0.07144666,224.74,224.42,0.1914006]
[1693481186759,0.07144666,224.73,224.4,0.1914006]
[1693481187062,0.07144666,224.73,224.41,0.1914006]
[1693481187261,0.07144666,224.73,224.4,0.1914006]
[1693481187462,0.07144666,224.73,224.41,0.1914006]
[1693481187656,0.07144666,224.73,224.42,0.1914006]
[1693481187859,0.07144666,224.73,224.4,0.1914006]
[1693481188059,0.07144666,224.74,224.41,0.1914006]
[1693481188263,0.07144666,224.79,224.45,0.07063084]
[1693481188562,0.07144666,224.79,224.46,0.1914006]
[1693481188763,0.07144666,224.79,224.46,0.26203144]
[1693481189063,0.07144666,224.8,224.47,0.1914006]
[1693481189364,0.07144666,224.8,224.48,0.1914006]
[1693481189663,0.07144666,224.79,224.49,0.1914006]
[1693481189863,0.07144666,224.8,224.46,0.1914006]
[1693481190062,0.07144666,224.8,224.47,0.1914006]
[1693481190364,0.07144666,224.8,224.48,0.1914006]
[1693481190562,0.07144666,224.8,224.45,0.1914006]
[1693481190762,0.07144666,224.8,224.46,0.1914006]
[1693481190957,0.07144666,224.8,224.47,0.1914006]
[1693481191159,0.07144666,224.8,224.44,0.1914006]
[1693481191359,0.07144666,224.8,224.45,0.1914006]
[1693481191562,0.07144666,224.8,224.46,0.1914006]
[1693481191758,0.07144666,224.8,224.45,0.1914006]
[1693481191961,0.07144666,224.81,224.46,0.1914006]
[1693481192163,0.07144666,224.81,224.47,0.1914006]
[1693481192462,0.07144666,224.81,224.48,0.1914006]
[1693481192663,0.07144666,224.81,224.49,0.1914006]
[1693481192859,0.07144666,224.81,224.45,0.1914006]
[1693481193165,0.07144666,224.81,224.46,0.1914006]
[1693481193462,0.07144666,224.81,224.47,0.1914006]
[1693481193664,0.07144666,224.81,224.48,0.1914006]
[1693481193857,0.07144666,224.81,224.49,0.1914006]
[1693481194057,0.07144666,224.81,224.45,0.1914006]
[1693481194257,0.07144666,224.81,224.46,0.1914006]
[1693481194459,0.07144666,224.81,224.47,0.1914006]
[1693481194657,0.07144666,224.8,224.44,0.1914006]
[1693481194862,0.07144666,224.8,224.45,0.1914006]
[1693481195057,0.07144666,224.8,224.46,0.1914006]
[1693481195261,0.07144666,224.8,224.44,0.1914006]
[1693481195457,0.07144666,224.8,224.45,0.1914006]
[1693481195659,0.07144666,224.8,224.43,0.1914006]
[1693481195859,0.07144666,224.8,224.44,0.1914006]
[1693481196062,0.07144666,224.8,224.45,0.1914006]
[1693481196365,0.07144666,224.8,224.46,0.1914006]
[1693481196664,0.07144666,224.8,224.18,0.94174463]
[1693481196665,0.07144666,224.81,224.47,0.1914006]
[1693481196868,0.07144666,224.81,224.44,0.1914006]
[1693481197065,0.07144666,224.81,224.45,0.1914006]
[1693481197258,0.07144666,224.81,224.44,0.1914006]
[1693481197461,0.07144666,224.81,224.45,0.1914006]
[1693481197659,0.07144666,224.82,224.46,0.1914006]
[1693481197859,0.07144666,224.82,224.47,0.1914006]
[1693481198060,0.07144666,224.82,224.48,0.1914006]
[1693481198258,0.07144666,224.82,224.49,0.1914006]
[1693481198465,0.07144666,224.82,224.5,0.1914006]
[1693481198665,0.07144666,224.82,224.44,0.1914006]
[1693481198867,0.07144666,224.82,224.45,0.1914006]
[1693481199060,0.07144666,224.82,224.43,0.1914006]
[1693481199263,0.07144666,224.82,224.19,0.94174463]
[1693481199264,0.07144666,224.84,224.44,0.26203144]
[1693481199466,0.07144666,224.85,224.45,0.26203144]
[1693481199660,0.07144666,224.85,224.46,0.1914006]
[1693481200066,0.07144666,224.85,224.47,0.1914006]
[1693481200267,0.07144666,224.85,224.48,0.1914006]
[1693481200469,0.07144666,224.85,224.49,0.1914006]
[1693481200667,0.07144666,224.85,224.5,0.1914006]
[1693481200867,0.07144666,224.85,224.45,0.1914006]
[1693481201068,0.07144666,224.85,224.46,0.1914006]
[1693481201362,0.07144666,224.85,224.47,0.1914006]
[1693481201560,0.07144666,224.85,224.48,0.1914006]
[1693481201764,0.07144666,224.86,224.44,0.1914006]
[1693481201969,0.07144666,224.86,224.45,0.1914006]
[1693481202161,0.07144666,224.86,224.44,0.1914006]
[1693481202370,0.07144666,224.86,224.45,0.1914006]
[1693481202569,0.07144666,224.86,224.46,0.1914006]
[1693481202770,0.07144666,224.86,224.44,0.1914006]
[1693481203071,0.07144666,224.86,224.45,0.1914006]
[1693481203265,0.07144666,224.86,224.44,0.1914006]
[1693481203570,0.07144666,224.86,224.45,0.1914006]
[1693481203771,0.07144666,224.86,224.46,0.1914006]
[1693481203971,0.07144666,224.86,224.44,0.1914006]
[1693481204169,0.07144666,224.86,224.45,0.1914006]
[1693481204364,0.07144666,224.86,224.46,0.1914006]
[1693481204570,0.07144666,224.86,224.47,0.1914006]
[1693481204769,0.07144666,224.86,224.48,0.1914006]
[1693481204972,0.07144666,224.86,224.43,0.1914006]
[1693481205170,0.07144666,224.86,224.44,0.1914006]
[1693481205373,0.07144666,224.86,224.45,0.1914006]
[1693481205674,0.07144666,224.86,224.46,0.1914006]
[1693481205974,0.07144666,224.86,224.47,0.1914006]
[1693481206173,0.07144666,224.86,224.43,0.1914006]
[1693481206373,0.07144666,224.87,224.44,0.1914006]
[1693481207275,0.07144666,224.87,224.45,0.1914006]
[1693481207473,0.07144666,224.87,224.43,0.1914006]
[1693481207774,0.07144666,224.87,224.44,0.1914006]
[1693481207972,0.07144666,224.87,224.45,0.1914006]
[1693481208275,0.07144666,224.87,224.46,0.1914006]
[1693481208575,0.07144666,224.87,224.47,0.1914006]
[1693481208770,0.07144666,224.87,224.48,0.1914006]
[1693481208972,0.07144666,224.87,224.43,0.1914006]
[1693481209168,0.07144666,224.87,224.42,0.07063084]
[1693481209169,0.07144666,224.87,224.44,0.1914006]
[1693481209374,0.07144666,224.87,224.45,0.1914006]
[1693481209569,0.07144666,224.87,224.43,0.1914006]
[1693481209774,0.07144666,224.87,224.44,0.1914006]
[1693481209975,0.07144666,224.87,224.45,0.1914006]
[1693481210174,0.07144666,224.87,224.46,0.1914006]
[1693481210374,0.07144666,224.87,224.43,0.1914006]
[1693481210575,0.07144666,224.87,224.44,0.1914006]
[1693481210776,0.07144666,224.87,224.45,0.1914006]
[1693481211077,0.07144666,224.87,224.46,0.1914006]
[1693481211274,0.07144666,224.87,224.47,0.1914006]
[1693481211576,0.07144666,224.87,224.48,0.1914006]
[1693481211776,0.07144666,224.87,224.44,0.1914006]
[1693481211971,0.07144666,224.87,224.45,0.1914006]
[1693481212172,0.07144666,224.87,224.46,0.1914006]
[1693481212371,0.07144666,224.87,224.44,0.1914006]
[1693481212571,0.07144666,224.87,224.45,0.1914006]
[1693481212776,0.07144666,224.87,224.46,0.1914006]
[1693481212974,0.07144666,224.87,224.47,0.1914006]
[1693481213174,0.07144666,224.87,224.44,0.1914006]
[1693481213375,0.07144666,224.87,224.45,0.1914006]
[1693481213570,0.07144666,224.87,224.46,0.1914006]
[1693481213775,0.07144666,224.86,224.47,0.1914006]
[1693481213973,0.07144666,224.86,224.44,0.1914006]
[1693481214172,0.07144666,224.86,224.45,0.1914006]
[1693481214379,0.07144666,224.86,224.46,0.1914006]
[1693481214576,0.07144666,224.86,224.44,0.1914006]
[1693481214774,0.07144666,224.86,224.45,0.1914006]
[1693481214978,0.07144666,224.86,224.46,0.1914006]
[1693481215282,0.07144666,224.86,224.47,0.1914006]
[1693481215476,0.07144666,224.86,224.48,0.1914006]
[1693481215672,0.07144666,224.86,224.49,0.1914006]
[1693481215873,0.07144666,224.86,224.45,0.1914006]
[1693481216078,0.07144666,224.85,224.46,0.1914006]
[1693481216274,0.07144666,224.85,224.47,0.1914006]
[1693481216474,0.07144666,224.85,224.48,0.1914006]
[1693481216675,0.07144666,224.85,224.49,0.1914006]
[1693481216882,0.07144666,224.84,224.45,0.26203144]
[1693481217181,0.07144666,224.84,224.46,0.1914006]
[1693481217381,0.07144666,224.84,224.47,0.1914006]
[1693481217582,0.07144666,224.84,224.45,0.1914006]
[1693481217775,0.07144666,224.84,224.46,0.1914006]
[1693481217976,0.07144666,224.83,224.47,0.1914006]
[1693481218178,0.07144666,224.83,224.48,0.1914006]
[1693481218484,0.07144666,224.83,224.49,0.1914006]
[1693481218681,0.07144666,224.84,224.5,0.1914006]
[1693481218881,0.07144666,224.83,224.51,0.1914006]
[1693481219183,0.07144666,224.84,224.52,0.1914006]
[1693481219484,0.07144666,224.84,224.53,0.1914006]
[1693481219783,0.07144666,224.84,224.54,0.1914006]
[1693481219986,0.07144666,224.84,224.48,0.26203144]
[1693481220179,0.07144666,224.84,224.49,0.1914006]
[1693481221086,0.07144666,224.87,224.53,0.07063084]
[1693481221283,0.07144666,224.88,224.54,0.26203144]
[1693481221483,0.07144666,224.88,224.55,0.1914006]
[1693481221882,0.07144666,224.87,224.55,0.26203144]
[1693481222182,0.07144666,224.88,224.56,0.1914006]
[1693481222383,0.07144666,224.88,224.55,0.1914006]
[1693481222583,0.07144666,224.88,224.56,0.1914006]
[1693481222780,0.07144666,224.88,224.57,0.1914006]
[1693481222979,0.07144666,224.87,224.55,0.26203144]
[1693481223283,0.07144666,224.87,224.56,0.1914006]
[1693481223484,0.07144666,224.86,224.56,0.1914006]
[1693481223680,0.14289333,224.89,224.56,0.1914006]
[1693481223681,0.07144666,224.87,224.56,0.1914006]
[1693481223882,0.07144666,224.87,224.57,0.1914006]
[1693481224083,0.07144666,224.87,224.55,0.1914006]
[1693481224286,0.07144666,224.87,224.56,0.1914006]
[1693481224484,0.07144666,224.87,224.55,0.1914006]
[1693481224685,0.07144666,224.88,224.56,0.1914006]
[1693481224883,0.07144666,224.88,224.57,0.1914006]
[1693481225087,0.07144666,224.88,224.55,0.1914006]
[1693481225284,0.07144666,224.88,224.56,0.1914006]
[1693481225483,0.07144666,224.88,224.57,0.1914006]
[1693481225684,0.07144666,224.88,224.55,0.1914006]
[1693481225887,0.07144666,224.88,224.56,0.1914006]
[1693481226083,0.07144666,224.88,224.57,0.1914006]
[1693481226285,0.07144666,224.88,224.54,0.1914006]
[1693481226480,0.07144666,224.88,224.55,0.1914006]
[1693481226684,0.07144666,224.88,224.56,0.1914006]
[1693481226883,0.07144666,224.89,224.54,0.1914006]
[1693481227083,0.07144666,224.89,224.55,0.1914006]
[1693481227286,0.07144666,224.89,224.56,0.1914006]
[1693481227485,0.07144666,224.88,224.54,0.1914006]
[1693481227685,0.07144666,224.88,224.55,0.1914006]
[1693481227988,0.07144666,224.89,224.56,0.1914006]
[1693481228183,0.07144666,224.89,224.54,0.1914006]
[1693481228389,0.07144666,224.89,224.55,0.1914006]
[1693481228688,0.07144666,224.89,224.56,0.1914006]
[1693481228891,0.07144666,224.89,224.57,0.1914006]
[1693481229085,0.07144666,224.89,224.58,0.1914006]
[1693481229286,0.07144666,224.89,224.54,0.1914006]
[1693481229490,0.07144666,224.89,224.55,0.1914006]
[1693481229688,0.07144666,224.89,224.56,0.1914006]
[1693481229882,0.07144666,224.89,224.53,0.1914006]
[1693481230083,0.07144666,224.89,224.54,0.1914006]
[1693481230283,0.07144666,224.89,224.55,0.1914006]
[1693481230487,0.07144666,224.89,224.53,0.1914006]
[1693481230683,0.07144666,224.89,224.54,0.1914006]
[1693481230885,0.07144666,224.89,224.55,0.1914006]
[1693481231086,0.07144666,224.89,224.56,0.1914006]
[1693481231283,0.07144666,224.89,224.57,0.1914006]
[1693481231488,0.07144666,224.89,224.54,0.1914006]
[1693481231790,0.07144666,224.89,224.55,0.1914006]
[1693481231988,0.07144666,224.89,224.56,0.1914006]
[1693481232190,0.07144666,224.89,224.57,0.1914006]
[1693481232383,0.07144666,224.89,224.58,0.1914006]
[1693481232689,0.07144666,224.89,224.59,0.1914006]
[1693481232989,0.07144666,224.89,224.6,0.1914006]
[1693481233182,0.07144666,224.89,224.61,0.1914006]
[1693481233385,0.07144666,224.89,224.52,0.07063084]
[1693481233586,0.07144666,224.89,224.53,0.19066108]
[1693481235492,0.07144666,224.88,224.53,0.19066108]
[1693481236294,0.07144666,224.88,224.54,0.19066108]
[1693481236593,0.07144666,224.88,224.55,0.19066108]
[1693481236893,0.07144666,224.88,224.56,0.19066108]
[1693481237094,0.07144666,224.88,224.57,0.19066108]
[1693481237294,0.07144666,224.88,224.58,0.19066108]
[1693481237493,0.07144666,224.88,224.59,0.19066108]
[1693481237687,0.07144666,224.88,224.6,0.19066108]
[1693481237992,0.07144666,224.88,224.51,0.07063084]
[1693481238188,0.07144666,224.88,224.52,0.19072648]
[1693481239293,0.07144666,224.87,224.52,0.19072648]
[1693481240491,0.07144666,224.84,224.52,0.19072648]
[1693481240692,0.07144666,224.82,224.53,0.19072648]
[1693481240893,0.07144666,224.81,224.54,0.19072648]
[1693481241087,0.07144666,224.81,224.45,0.07063084]
[1693481241288,0.07144666,224.81,224.46,0.19104695]
[1693481241693,0.07144666,224.82,224.46,0.19104695]
[1693481243493,0.07144666,224.82,224.45,0.07063084]
[1693481245103,0.07144666,224.82,224.46,0.19104618]
[1693481245796,0.95262226,224.9,224.46,0.19104618]
[1693481245797,0.07144666,224.83,224.46,0.19104618]
[1693481249402,0.07144666,224.83,224.47,0.19104618]
[1693481249607,0.07144666,224.83,224.48,0.19104618]
[1693481249903,0.07144666,224.83,224.44,0.07063084]
[1693481249904,0.07144666,224.83,224.49,0.19104618]
[1693481250099,0.07144666,224.83,224.45,0.19104618]
[1693481250303,0.07144666,224.83,224.46,0.19104618]
[1693481250503,0.07144666,224.83,224.47,0.19104618]
[1693481250704,0.07144666,224.83,224.48,0.19104618]
[1693481251005,0.07144666,224.83,224.49,0.19104618]
[1693481251205,0.07144666,224.83,224.5,0.19104618]
[1693481251505,0.07144666,224.83,224.51,0.19104618]
[1693481251696,0.07144666,224.83,224.52,0.19104618]
[1693481251898,0.07144666,224.84,224.45,0.19104618]
[1693481252201,0.07144666,224.84,224.46,0.19104618]
[1693481252401,0.07144666,224.84,224.47,0.19104618]
[1693481252597,0.07144666,224.84,224.48,0.19104618]
[1693481252803,0.07144666,224.84,224.49,0.19104618]
[1693481253105,0.07144666,224.83,224.5,0.19104618]
[1693481253310,0.07144666,224.83,224.51,0.19104618]
[1693481253504,0.07144666,224.83,224.52,0.19104618]
[1693481253703,0.07144666,224.83,224.53,0.19104618]
[1693481253903,0.07144666,224.84,224.54,0.19104618]
[1693481254101,0.07144666,224.84,224.43,0.07063084]
[1693481254302,0.07144666,224.84,224.44,0.19108858]
[1693481255406,0.07144666,224.79,224.44,0.19108858]
[1693481255603,0.07144666,224.78,224.45,0.19108858]
[1693481255803,0.07144666,224.79,224.46,0.19108858]
[1693481256007,0.07144666,224.79,224.47,0.19108858]
[1693481256309,0.07144666,224.79,224.48,0.19108858]
[1693481256510,0.07144666,224.79,224.36,0.07063084]
[1693481256710,0.07144666,224.79,224.37,0.19142291]
[1693481257012,0.07144666,224.79,224.38,0.19142291]
[1693481257211,0.07144666,224.79,224.39,0.19142291]
[1693481257406,0.07144666,224.79,224.4,0.19142291]
[1693481257611,0.07144666,224.79,224.41,0.19142291]
[1693481257813,0.07144666,224.8,224.42,0.19142291]
[1693481258005,0.07144666,224.8,224.36,0.19142291]
[1693481258312,0.07144666,224.8,224.37,0.19142291]
[1693481258611,0.07144666,224.8,224.38,0.19142291]
[1693481258806,0.07144666,224.8,224.39,0.19142291]
[1693481259005,0.07144666,224.8,224.4,0.19142291]
[1693481259207,0.07144666,224.8,224.41,0.19142291]
[1693481259410,0.07144666,224.8,224.42,0.19142291]
[1693481259611,0.07144666,224.8,224.43,0.19142291]
[1693481259813,0.07144666,224.81,224.44,0.19142291]
[1693481260014,0.07144666,224.81,224.35,0.19142291]
[1693481260307,0.07144666,224.8,224.36,0.19142291]
[1693481260515,0.07144666,224.8,224.37,0.19142291]
[1693481260709,0.07144666,224.8,224.38,0.19142291]
[1693481260906,0.07144666,224.8,224.39,0.19142291]
[1693481261111,0.07144666,224.8,224.4,0.19142291]
[1693481261313,0.07144666,224.8,224.41,0.19142291]
[1693481261513,0.07144666,224.8,224.32,0.07063084]
[1693481261514,0.07144666,224.8,224.33,0.19142291]
[1693481261710,0.07144666,224.8,224.34,0.19142291]
[1693481261906,0.07144666,224.8,224.35,0.19142291]
[1693481262109,0.07144666,224.8,224.36,0.19142291]
[1693481262312,0.07144666,224.8,224.33,0.19142291]
[1693481262507,0.07144666,224.8,224.34,0.19142291]
[1693481262708,0.07144666,224.81,224.35,0.19142291]
[1693481262908,0.81793192,224.8,224.33,0.19142291]
[1693481263113,0.81793192,224.8,224.34,0.19142291]
[1693481263313,0.81793192,224.8,224.35,0.19142291]
[1693481263614,0.81793192,224.8,224.36,0.19142291]
[1693481263814,0.81793192,224.8,224.37,0.19142291]
[1693481264010,0.81793192,224.8,224.33,0.19142291]
[1693481264215,0.81793192,224.8,224.34,0.19142291]
[1693481264407,0.81793192,224.8,224.35,0.19142291]
[1693481264613,0.81793192,224.8,224.36,0.19142291]
[1693481264812,0.88937858,224.8,224.37,0.19142291]
[1693481265009,0.07144666,224.8,224.38,0.19142291]
[1693481265212,0.07144666,224.8,224.39,0.19142291]
[1693481265515,0.07144666,224.8,224.4,0.19142291]
[1693481265816,0.07144666,224.8,224.41,0.19142291]
[1693481266012,0.07144666,224.8,224.42,0.19142291]
[1693481266208,0.07144666,224.8,224.43,0.19142291]
[1693481266411,0.07144666,224.8,224.44,0.19142291]
[1693481266616,0.07144666,224.8,224.45,0.19142291]
[1693481266814,0.07144666,224.8,224.46,0.19142291]
[1693481267012,0.07144666,224.8,224.47,0.19142291]
[1693481267212,0.07144666,224.8,224.32,0.07063084]
[1693481267409,0.07144666,224.8,224.33,0.19143171]
[1693481268610,0.07144666,224.8,224.33,0.26206255]
[1693481268812,0.07144666,224.8,224.34,0.19143171]
[1693481269012,0.07144666,224.81,224.34,0.26206255]
[1693481269310,0.07144666,224.81,224.35,0.19143171]
[1693481269711,0.07144666,224.8,224.35,0.19143171]
[1693481270612,0.07144666,224.8,224.35,0.26206255]
[1693481270816,0.07144666,224.8,224.36,0.19143171]
[1693481271718,0.07144666,224.79,224.36,0.26206255]